bitfinex-derivatives/quotes_ETHF0:USTF0_20251226
["timestamp","ask_amount","ask_price","bid_price","bid_amount"]
[1766787544383,0.00440586,2927.8,2926.9,0.90623944]
[1766787544787,0.00512172,2927.6,2926.9,0.90623944]
[1766787544987,2.172e-05,2927.6,2926.9,2.21393007]
[1766787545182,2.172e-05,2927.6,2926.9,0.90623944]
[1766787545380,2.172e-05,2927.6,2926.9,2.24244665]
[1766787546089,2.172e-05,2927.6,2926.9,2.22688582]
[1766787547386,2.172e-05,2927.6,2926.9,2.2266794]
[1766787548389,2.172e-05,2927.6,2926.9,2.20010715]
[1766787551490,2.172e-05,2927.6,2926.9,0.90623944]
[1766787553394,1.26462558,2928.2,2926.9,0.90623944]
[1766787554194,0.00512172,2927.8,2927.3,0.00512172]
[1766787554394,0.0081789,2927.8,2927.3,8.87912172]
[1766787561904,0.17089,2928.2,2927.3,8.87912172]
[1766787562906,0.00341452,2928.0,2927.3,8.87912172]
[1766787563800,1.452e-05,2928.0,2927.3,8.87912172]
[1766787564809,1.452e-05,2928.0,2927.3,10.14923363]
[1766787565112,1.452e-05,2928.0,2927.4,0.90623944]
[1766787565308,1.08270528,2928.3,2927.4,5.28889737]
[1766787566301,1.08544972,2928.3,2927.4,5.28889737]
[1766787566505,0.92878113,2928.3,2927.4,5.28889737]
[1766787567413,1.07708944,2928.8,2927.4,5.28889737]
[1766787567616,1.08037175,2928.8,2927.4,5.28889737]
[1766787568410,2.16734673,2928.8,2927.4,5.28889737]
[1766787579413,2.16734673,2928.8,2927.4,5.27889737]
[1766787590716,2.16734673,2928.8,2927.6,0.90623944]
[1766787595828,1.26110729,2928.8,2927.6,0.90623944]
[1766787596325,1.26110729,2928.8,2927.3,10.12005346]
[1766787596528,1.26110729,2928.8,2927.5,0.90623944]
[1766787601939,1.26110729,2928.8,2927.4,8.898]
[1766787618850,1.25110729,2928.8,2927.4,8.898]
[1766787625358,1.25110729,2928.8,2927.4,8.888]
[1766787627660,1.25110729,2928.8,2927.3,1.24601024]
[1766787627858,1.25110729,2928.8,2927.4,8.898]
[1766787628054,1.25110729,2928.8,2927.4,13.30204359]
[1766787628758,1.09025729,2928.8,2927.3,0.00512172]
[1766787628962,0.17086,2928.6,2927.3,1.23488592]
[1766787629359,0.17086,2928.6,2927.3,0.00512172]
[1766787630555,6.82636097,2928.6,2927.3,0.00512172]
[1766787664086,7.73214014,2928.6,2927.3,0.00512172]
[1766787668496,7.73214014,2928.6,2927.2,0.76800089]
[1766787668699,0.17088,2928.3,2927.0,5.61626393]
[1766787668895,1.07665017,2928.3,2927.0,1.31806812]
[1766787669103,6.65550097,2928.6,2927.5,0.90577917]
[1766787669291,6.65550097,2928.6,2927.5,2.22360645]
[1766787669490,7.73195441,2928.6,2927.5,0.90577917]
[1766787669691,0.00512171,2928.3,2928.0,0.90577917]
[1766787669892,0.17082,2929.4,2928.2,0.90577917]
[1766787670097,0.17082,2929.4,2928.0,0.00352681]
[1766787670098,0.96162402,2929.3,2928.0,0.90930598]
[1766787670299,9.1254993,2929.4,2928.0,0.90930598]
[1766787670902,9.1280106,2929.4,2928.0,0.90930598]
[1766787672099,9.1280106,2929.4,2928.0,2.21184923]
[1766787672494,9.1280106,2929.4,2928.0,1.30607006]
[1766787672800,9.1280106,2929.4,2928.0,2.21184923]
[1766787688512,9.1180106,2929.4,2928.0,2.21184923]
[1766787700813,8.21223143,2929.4,2928.3,0.90577917]
[1766787701015,0.90577917,2928.4,2927.8,0.00512172]
[1766787701211,0.90577917,2928.4,2927.8,2.172e-05]
[1766787701407,0.90577917,2928.4,2927.4,8.832]
[1766787701611,0.90577917,2928.1,2927.4,1.33998156]
[1766787701813,0.90577917,2928.1,2927.0,10.15006812]
[1766787702115,0.90577917,2928.1,2927.0,10.15315421]
[1766787702318,0.00512172,2927.8,2927.3,0.00512172]
[1766787708417,0.00512172,2927.8,2927.3,8.85712172]
[1766787713326,7.87548923,2928.7,2927.3,8.85712172]
[1766787713523,7.87548923,2928.7,2927.3,9.76290089]
[1766787714321,1.10320147,2928.7,2927.3,9.76290089]
[1766787714517,1.10320147,2928.7,2927.5,0.90577917]
[1766787716023,1.12550993,2928.7,2927.5,0.90577917]
[1766787717124,1.11950012,2928.7,2927.5,0.90577917]
[1766787718824,1.10053284,2928.7,2927.5,0.90577917]
[1766787719026,0.17085,2928.8,2927.5,0.90577917]
[1766787719927,1.27138284,2928.8,2927.5,0.90577917]
[1766787720326,0.17085,2928.8,2927.5,0.90577917]
[1766787722130,0.90577917,2928.6,2927.4,1.35989824]
[1766787722335,0.90577917,2928.6,2927.5,8.867]
[1766787723220,2.01980675,2928.6,2927.5,8.867]
[1766787724033,2.01980675,2928.6,2927.4,1.32048498]
[1766787724234,2.03416186,2928.6,2927.6,8.87]
[1766787725034,0.90577917,2928.6,2927.6,8.87]
[1766787725229,2.03416186,2928.6,2927.6,8.87]
[1766787725932,1.12838269,2928.6,2927.4,1.34386718]
[1766787726131,1.1382893,2928.6,2927.7,8.873]
[1766787727130,0.17085,2928.8,2927.7,8.873]
[1766787727332,1.24217264,2928.8,2927.7,8.873]
[1766787728432,1.28196074,2928.8,2927.7,8.873]
[1766787729233,0.17085,2928.8,2927.7,8.873]
[1766787729734,1.28196074,2928.8,2927.7,8.873]
[1766787730426,1.28196074,2928.8,2927.7,8.872]
[1766787730631,1.25377165,2928.8,2927.7,8.872]
[1766787730926,0.17085,2928.8,2927.7,8.872]
[1766787731130,1.25252311,2928.8,2927.7,8.872]
[1766787731629,0.17085,2928.8,2927.7,8.871]
[1766787731937,1.25252311,2928.8,2927.7,8.871]
[1766787732131,1.2557932,2928.8,2927.7,8.871]
[1766787734034,0.17085,2928.8,2927.7,8.871]
[1766787734239,1.24316056,2928.8,2927.7,8.871]
[1766787735239,0.17085,2928.8,2927.7,8.871]
[1766787735445,1.25020768,2928.8,2927.7,8.871]
[1766787736740,0.17085,2928.8,2927.7,8.871]
[1766787736939,1.25608097,2928.8,2927.7,8.871]
[1766787738240,0.17085,2928.8,2927.7,8.871]
[1766787739449,1.28135457,2928.8,2927.7,8.871]
[1766787740242,0.17085,2928.8,2927.7,8.871]
[1766787741445,1.26418313,2928.8,2927.7,8.871]
[1766787742146,0.17085,2928.8,2927.7,8.871]
[1766787743146,1.24171703,2928.8,2927.7,8.871]
[1766787744357,1.27950467,2928.8,2927.7,8.871]
[1766787745255,0.17088,2928.4,2927.3,0.00512172]
[1766787745559,1.27665078,2928.4,2927.3,0.00512172]
[1766787745943,0.17088,2928.4,2927.3,0.00512172]
[1766787746149,1.2765567,2928.4,2927.3,0.00512172]
[1766787746654,1.27187096,2928.4,2927.3,0.00512172]
[1766787747759,1.2481589,2928.4,2927.3,0.00512172]
[1766787748961,1.26047548,2928.4,2927.3,0.00512172]
[1766787749261,0.17088,2928.4,2927.3,0.00512172]
[1766787750562,1.26047548,2928.4,2927.3,0.00512172]
[1766787750758,0.17088,2928.4,2927.3,0.00512172]
[1766787751563,1.27778818,2928.4,2927.3,0.00512172]
[1766787770568,1.10690818,2928.4,2927.3,0.00512172]
[1766787770774,0.9057953,2927.6,2926.2,8.855]
[1766787770968,1.99009645,2927.6,2926.2,8.855]
[1766787771172,0.9057953,2927.6,2926.2,8.855]
[1766787771470,0.9057953,2927.6,2926.3,4.44610074]
[1766787771670,1.08430115,2927.7,2926.3,4.44610074]
[1766787771865,0.00512172,2927.2,2926.7,0.00512172]
[1766787772168,0.00762053,2927.2,2926.7,0.00512172]
[1766787784075,0.00762053,2927.2,2926.3,0.00292272]
[1766787784982,0.00762053,2927.2,2926.5,0.00512172]
[1766787785678,0.00762053,2927.2,2926.3,0.00292272]
[1766787785977,0.9057953,2926.8,2925.6,1.29853943]
[1766787786580,0.9057953,2926.8,2925.6,1.29865346]
[1766787786768,0.9057953,2926.8,2925.9,0.00512172]
[1766787787980,0.90705155,2926.6,2925.9,0.00512172]
[1766787789981,0.90705155,2926.3,2925.6,0.00416245]
[1766787790182,1.98652942,2926.3,2925.6,0.00416245]
[1766787790482,1.98943766,2926.3,2925.6,0.00416245]
[1766787790876,1.98943766,2926.3,2925.0,3.023]
[1766787791076,1.98943766,2926.3,2925.4,0.00512172]
[1766787791277,0.90705155,2926.3,2925.4,0.00512172]
[1766787791585,1.98943766,2926.3,2925.4,0.00512172]
[1766787791786,1.98943766,2926.3,2925.4,0.00839882]
[1766787792287,1.98943766,2926.3,2924.3,0.27085719]
[1766787792288,0.90705155,2926.0,2924.5,1.26449028]
[1766787792473,0.90705155,2926.0,2924.6,6.154]
[1766787792678,0.90705155,2926.0,2924.7,4.38155778]
[1766787792878,0.90705155,2926.0,2924.6,10.53555778]
[1766787793077,0.90705155,2926.0,2923.9,0.17114]
[1766787793274,0.90705155,2926.0,2924.7,0.00512172]
[1766787794375,0.00512172,2925.6,2924.7,0.00512172]
[1766787826212,0.00512172,2925.6,2925.0,0.90705155]
[1766787826412,0.00512172,2925.6,2924.8,0.90705155]
[1766787826815,0.00512172,2925.6,2924.8,5.37582745]
[1766787828109,1.10984686,2926.1,2924.8,5.37582745]
[1766787829214,0.00512172,2925.7,2924.8,5.37582745]
[1766787830212,1.17114749,2926.1,2925.0,0.90705155]
[1766787831317,0.00512172,2925.8,2925.0,0.90705155]
[1766787835622,0.00512172,2925.8,2925.0,9.66805155]
[1766787836219,0.00512172,2925.8,2925.0,0.90705155]
[1766787836417,0.00512172,2925.8,2925.0,9.66705155]
[1766787840729,2.172e-05,2925.8,2925.0,9.66705155]
[1766787845928,2.172e-05,2925.8,2925.0,8.76]
[1766787846128,2.172e-05,2925.8,2925.0,9.66705155]
[1766787846535,2.172e-05,2925.8,2924.7,0.00512172]
[1766787846737,2.172e-05,2925.8,2924.8,9.67205155]
[1766787846937,2.172e-05,2925.8,2924.8,14.08757117]
[1766787847835,2.172e-05,2925.8,2924.8,4.41551962]
[1766787848035,2.172e-05,2925.8,2924.9,8.767]
[1766787849037,2.172e-05,2925.8,2924.7,1.14440615]
[1766787849236,2.172e-05,2925.8,2924.9,8.768]
[1766787849435,0.90743849,2925.7,2924.8,4.41874135]
[1766787849736,0.90743849,2925.7,2924.7,0.00512172]
[1766787849932,0.17105172,2925.8,2924.7,0.00512172]
[1766787850141,1.39075587,2925.7,2924.7,0.00512172]
[1766787851427,1.56178587,2925.7,2924.7,0.00512172]
[1766787853836,1.56178587,2925.7,2924.7,2.172e-05]
[1766787854037,2.46922436,2925.7,2924.1,8.757]
[1766787854242,1.56178587,2925.7,2924.1,8.757]
[1766787854544,1.56178587,2925.7,2924.2,4.42572957]
[1766787854934,1.56178587,2925.7,2924.7,0.00512172]
[1766787856639,0.17104,2925.5,2924.2,4.42572957]
[1766787856943,1.07849849,2925.3,2923.9,0.00424784]
[1766787857139,0.17106,2925.2,2923.9,0.00424784]
[1766787857844,0.17106,2925.2,2924.3,0.00512172]
[1766787858638,2.29646204,2925.3,2923.0,0.28836256]
[1766787858639,0.1711,2924.6,2923.0,0.01]
[1766787859534,0.00512172,2924.1,2923.5,0.00512172]
[1766787859746,0.00843629,2924.1,2923.5,0.00865615]
[1766787862547,0.00843629,2924.1,2923.0,0.01]
[1766787863538,0.00843629,2924.1,2923.3,0.00513075]
[1766787864744,1.07859849,2923.6,2921.7,0.17126]
[1766787864942,0.17116,2923.5,2921.5,5.974]
[1766787865138,0.90743849,2923.6,2921.9,4.39695193]
[1766787865339,0.17117,2923.3,2921.5,8.736]
[1766787865549,0.17118,2923.1,2921.3,1.14698432]
[1766787865749,0.17118,2923.1,2922.2,0.00341384]
[1766787866247,1.07863849,2922.8,2921.8,0.03593384]
[1766787866551,1.07863849,2922.8,2920.6,4.68333]
[1766787866944,1.07863849,2922.8,2920.7,4.43651567]
[1766787867341,0.00513075,2922.0,2920.9,0.17131]
[1766787867545,0.00761003,2922.0,2920.9,0.17457951]
[1766787867746,0.00761003,2922.0,2921.0,4.46083557]
[1766787867941,10.99770936,2923.1,2921.2,0.90743849]
[1766787868249,0.17119,2923.0,2921.3,4.4221226]
[1766787868648,0.17119,2923.0,2921.1,4.4221226]
[1766787868951,0.00513075,2922.3,2921.8,0.00513075]
[1766787870655,0.00513075,2922.3,2921.8,3.075e-05]
[1766787870955,0.00513075,2922.3,2920.9,0.17457951]
[1766787871251,0.00513075,2922.3,2921.0,4.40088052]
[1766787877058,0.00513075,2922.3,2920.9,1.15040646]
[1766787878152,0.00513075,2922.3,2921.0,4.42116726]
[1766787895266,0.98456446,2922.2,2921.0,4.42116726]
[1766787895571,0.00513075,2922.3,2921.0,4.42116726]
[1766787895871,0.98458486,2922.2,2921.0,4.42116726]
[1766787896168,0.00513075,2922.3,2921.0,4.42116726]
[1766787896369,0.98494098,2922.2,2921.0,4.42116726]
[1766787896571,0.00513075,2922.3,2921.0,4.42116726]
[1766787896769,0.9849505,2922.2,2921.0,4.42116726]
[1766787896966,0.00513075,2922.3,2921.0,4.42116726]
[1766787897271,0.98494215,2922.2,2921.0,4.42116726]
[1766787897468,0.98494215,2922.1,2921.0,4.42116726]
[1766787897665,0.00513075,2922.3,2921.0,4.42116726]
[1766787897971,0.98495239,2922.2,2921.1,8.698]
[1766787898269,0.00513075,2922.3,2921.2,4.54900218]
[1766787898472,0.98501585,2922.2,2921.2,4.54900218]
[1766787898672,0.00513075,2922.3,2921.2,4.54900218]
[1766787898872,0.98502037,2922.2,2921.2,4.54900218]
[1766787899074,0.00513075,2922.3,2921.2,4.54900218]
[1766787899372,0.98502037,2922.2,2921.2,4.54900218]
[1766787899672,0.00513075,2922.3,2921.2,13.24700218]
[1766787899970,0.9850852,2922.2,2921.2,13.24700218]
[1766787900171,0.00513075,2922.3,2921.2,13.24700218]
[1766787900362,1.22725411,2922.9,2921.3,1.07872849]
[1766787900564,0.98533411,2922.8,2921.3,1.07872849]
[1766787900765,0.98533411,2922.7,2921.7,0.90743849]
[1766787901070,0.00386273,2923.0,2921.8,4.53210763]
[1766787901377,0.00513075,2922.7,2922.1,0.00513075]
[1766787901868,1.34657043,2923.6,2922.1,0.91256924]
[1766787901869,0.11931632,2923.6,2922.1,0.91256924]
[1766787902070,0.9848237,2923.5,2922.2,4.39152971]
[1766787902264,0.9848237,2923.4,2922.2,4.39152971]
[1766787902469,0.11931632,2923.6,2922.2,4.39152971]
[1766787902870,0.00513075,2923.2,2922.2,4.39152971]
[1766787903070,0.12196147,2923.6,2922.2,4.39152971]
[1766787903376,0.12196147,2923.6,2922.2,4.56275971]
[1766787903572,0.00264515,2923.6,2922.2,4.56275971]
[1766787903965,0.00513075,2923.2,2922.2,4.56275971]
[1766787905071,0.00264515,2923.6,2922.5,0.90743849]
[1766787905274,0.00264515,2923.6,2922.6,8.7]
[1766787905464,0.00264515,2923.6,2922.6,13.24752541]
[1766787905779,11.51695994,2924.1,2922.7,0.90743849]
[1766787906174,11.51695994,2924.1,2922.8,4.54752541]
[1766787906677,11.52139676,2924.1,2922.8,4.54752541]
[1766787907177,0.00513075,2923.7,2922.8,4.54752541]
[1766787908388,3.075e-05,2923.7,2922.8,4.54752541]
[1766787910178,3.075e-05,2923.7,2923.2,0.90832328]
[1766787910472,3.075e-05,2923.7,2923.2,0.91166259]
[1766787917483,3.075e-05,2923.7,2923.2,0.00333931]
[1766787954818,0.17108,2924.9,2923.3,0.90832328]
[1766787955014,1.07940328,2924.9,2923.3,0.90832328]
[1766787955214,0.90832328,2924.5,2923.2,0.00333931]
[1766787955523,0.90832328,2923.9,2923.2,0.00333931]
[1766787955912,0.0034205,2923.8,2923.3,0.00513075]
[1766787960923,0.17111,2924.3,2923.3,0.00513075]
[1766787961225,8.81532328,2924.8,2923.3,0.91345403]
[1766787961625,0.29294839,2924.9,2923.6,0.90832328]
[1766787962020,11.91822389,2924.6,2923.6,0.90832328]
[1766787964518,11.91822389,2924.6,2923.5,0.90832328]
[1766787967427,11.91822389,2924.6,2923.7,0.90832328]
[1766787968122,11.91822389,2924.6,2923.6,0.90832328]
[1766787968922,0.17111,2924.4,2923.2,0.00333931]
[1766787969324,1.07943328,2924.4,2923.2,0.00333931]
[1766787970020,0.00513075,2924.1,2923.5,0.00513075]
[1766787982540,0.00513075,2924.1,2923.2,0.00333931]
[1766787984836,0.00513075,2924.1,2923.4,0.00513075]
[1766788005856,1.51694881,2924.4,2923.4,0.00513075]
[1766788006757,3.075e-05,2924.2,2923.4,0.00513075]
[1766788014162,0.22067956,2924.4,2923.4,0.00513075]
[1766788015059,0.00513075,2924.2,2923.4,0.00513075]
[1766788033985,0.00513075,2924.2,2923.5,0.90811663]
[1766788041094,0.22067956,2924.4,2923.5,0.90811663]
[1766788041294,0.09097956,2924.4,2923.7,0.90811663]
[1766788056806,0.09097956,2924.4,2923.4,0.00513075]
[1766788057004,0.09097956,2924.4,2923.8,0.90811663]
[1766788059800,0.12186839,2924.9,2924.3,0.0008]
[1766788060805,0.12442535,2924.9,2924.1,0.90811663]
[1766788064809,0.12442535,2924.9,2924.3,0.90811663]
[1766788065813,1.40057276,2925.2,2923.7,1.35714369]
[1766788065814,1.40057276,2925.2,2924.5,0.90811663]
[1766788066717,1.4037059,2925.2,2924.5,0.90811663]
[1766788096043,1.4037059,2925.2,2924.0,1.0786519]
[1766788096342,1.4037059,2925.2,2924.1,4.34551639]
[1766788103455,1.4037059,2925.2,2924.2,8.322]
[1766788103854,0.00313314,2925.2,2924.3,4.37942295]
[1766788104054,1.51284566,2926.0,2924.3,4.37942295]
[1766788104264,0.97128014,2925.9,2924.3,4.37942295]
[1766788104464,1.51284566,2926.0,2924.3,4.37942295]
[1766788104661,0.97104113,2925.9,2924.3,4.37942295]
[1766788104867,1.51284566,2926.0,2924.3,4.37942295]
[1766788105066,0.97397251,2925.9,2924.3,4.37942295]
[1766788105364,0.00291618,2925.9,2924.3,4.37942295]
[1766788107460,0.91043808,2925.9,2924.3,4.37942295]
[1766788107662,0.9075219,2925.5,2924.0,8.324]
[1766788107865,0.17103,2925.7,2923.6,1.29499511]
[1766788108057,0.17103,2925.7,2923.8,4.48294483]
[1766788108262,0.17103,2925.7,2923.7,12.80694483]
[1766788108455,0.17104,2925.6,2923.6,1.29499511]
[1766788108656,2.04901841,2925.5,2923.7,4.341]
[1766788108965,0.97045651,2925.4,2923.7,8.82394483]
[1766788109962,1.52220888,2925.5,2923.7,8.82394483]
[1766788110267,0.96995657,2925.4,2923.7,4.48294483]
[1766788110466,1.52220888,2925.5,2923.7,4.48294483]
[1766788110662,0.96965005,2925.4,2923.7,4.48294483]
[1766788110861,1.52220888,2925.5,2923.7,4.48294483]
[1766788111061,0.9696475,2925.4,2923.7,4.48294483]
[1766788111361,1.52220888,2925.5,2923.7,4.48294483]
[1766788111564,0.96939221,2925.4,2923.7,4.48294483]
[1766788111764,1.52220888,2925.5,2923.7,4.48294483]
[1766788111966,0.96939382,2925.4,2923.7,4.48294483]
[1766788112159,1.52220888,2925.5,2923.7,4.48294483]
[1766788112360,0.96936311,2925.4,2923.7,4.48294483]
[1766788112659,1.52220888,2925.5,2923.7,4.48294483]
[1766788112861,0.96918684,2925.4,2923.7,4.48294483]
[1766788113059,1.52220888,2925.5,2923.7,4.48294483]
[1766788125876,0.17105,2925.4,2923.7,4.48294483]
[1766788135383,0.17105,2925.4,2924.0,0.9075219]
[1766788135582,0.17105,2925.4,2924.0,2.00616658]
[1766788135884,0.17105,2925.4,2924.1,4.49334301]
[1766788136086,0.17105,2925.4,2924.2,8.332]
[1766788137984,0.17107,2925.0,2924.2,8.332]
[1766788138184,0.17108,2924.9,2923.9,8.336]
[1766788138377,0.17109,2924.8,2923.4,0.00513075]
[1766788138580,0.17109,2924.8,2923.5,8.336]
[1766788138879,1.49187015,2924.8,2923.5,8.336]
[1766788139175,0.17109,2924.8,2923.5,8.336]
[1766788139783,1.47850633,2924.8,2923.5,8.336]
[1766788140084,0.17109,2924.8,2923.5,8.336]
[1766788140585,1.47850633,2924.8,2923.5,8.336]
[1766788141288,1.47850633,2924.8,2923.4,0.00513075]
[1766788142087,0.17109,2924.7,2923.4,8.33413075]
[1766788142387,0.17109,2924.7,2923.4,0.00513075]
[1766788142687,0.17109,2924.7,2923.4,8.33313075]
[1766788143778,0.1711,2924.6,2923.4,8.33313075]
[1766788144682,0.17111,2924.4,2923.4,0.00513075]
[1766788144887,1.48990775,2924.4,2923.4,0.00513075]
[1766788148594,0.17111,2924.3,2923.4,0.00513075]
[1766788158002,1.07960308,2924.3,2923.4,0.00513075]
[1766788162204,0.17111,2924.3,2923.4,0.00513075]
[1766788162905,0.17111,2924.3,2923.5,8.314]
[1766788167710,0.17111,2924.3,2923.4,0.00513075]
[1766788168012,0.17111,2924.3,2923.5,8.313]
[1766788168210,1.47466427,2924.3,2923.5,8.313]
[1766788176913,0.17111,2924.3,2923.5,8.313]
[1766788177117,0.17111,2924.3,2923.5,9.35834403]
[1766788178020,1.39011447,2924.3,2923.5,8.313]
[1766788180118,0.17111,2924.3,2923.5,8.313]
[1766788182821,0.17111,2924.3,2923.5,9.35608281]
[1766788183113,0.17111,2924.3,2923.5,8.313]
[1766788200543,1.22838041,2924.5,2923.6,0.90849308]
[1766788200735,0.04298041,2924.5,2923.5,9.22149308]
[1766788204945,0.17109,2924.7,2923.5,9.22149308]
[1766788205345,0.17109,2924.7,2923.5,0.90849308]
[1766788205548,0.17109,2924.7,2923.6,8.304]
[1766788205740,0.17109,2924.7,2923.7,0.90849308]
[1766788207645,0.17109,2924.7,2923.8,8.303]
[1766788207847,1.07959308,2924.6,2923.9,8.302]
[1766788208238,0.1711,2924.6,2923.9,8.302]
[1766788210944,1.30070352,2925.5,2924.1,0.90849308]
[1766788211448,0.17106,2925.2,2924.1,0.90849308]
[1766788212646,1.16150295,2925.6,2924.2,4.40594874]
[1766788212842,1.16150295,2925.6,2924.3,8.298]
[1766788213041,1.16150295,2925.6,2924.3,9.20649308]
[1766788213848,1.07952308,2925.8,2924.3,9.20649308]
[1766788214247,1.17629507,2925.6,2924.5,0.90849308]
[1766788215853,1.17629507,2925.6,2924.7,0.90849308]
[1766788216049,0.17103,2925.8,2924.7,0.90849308]
[1766788216253,0.17103,2925.8,2925.0,0.00513075]
[1766788216452,0.17103,2925.8,2925.0,8.29713075]
[1766788220854,0.00291618,2925.9,2925.0,8.29713075]
[1766788221054,1.27524506,2926.2,2925.0,8.29713075]
[1766788221461,0.17099,2926.5,2925.1,4.38981085]
[1766788222058,0.17466882,2926.5,2925.2,8.288]
[1766788222258,0.17466882,2926.5,2925.1,4.38981085]
[1766788222453,0.17466882,2926.5,2925.3,4.52961916]
[1766788222659,0.17466882,2926.5,2925.3,0.0041892]
[1766788222963,0.17466882,2926.5,2925.3,4.53380836]
[1766788223169,0.17466882,2926.5,2925.4,8.287]
[1766788229462,0.17466882,2926.5,2925.3,0.0041892]
[1766788229763,0.171,2926.3,2925.3,0.0041892]
[1766788229962,0.171,2926.2,2925.3,0.0041892]
[1766788230157,0.17101,2926.1,2925.3,0.0041892]
[1766788230359,1.39891697,2926.1,2925.3,0.0041892]
[1766788244579,0.17101,2926.0,2925.3,0.0041892]
[1766788244777,0.17101,2926.0,2925.0,0.00513075]
[1766788245673,0.17101,2926.0,2925.0,0.0090981]
[1766788260783,0.17101,2926.0,2925.0,8.2360981]
[1766788262386,0.17101,2926.0,2925.0,0.0090981]
[1766788265587,1.22790697,2926.1,2925.1,4.39251824]
[1766788269382,1.40227321,2926.5,2925.1,5.29980747]
[1766788280003,1.40227321,2926.5,2925.4,0.9069413]
[1766788280198,1.40227321,2926.5,2925.5,8.231]
[1766788280398,1.40227321,2926.5,2925.6,8.231]
[1766788282506,1.23128321,2926.5,2925.8,0.9069413]
[1766788291114,1.23128321,2926.5,2925.9,8.228]
[1766788294414,1.23128321,2926.5,2925.5,0.9069413]
[1766788294615,1.23128321,2926.5,2925.6,8.227]
[1766788294807,1.23128321,2926.5,2925.6,12.64682457]
[1766788297921,1.23128321,2926.5,2925.6,4.41982457]
[1766788298220,1.23128321,2926.5,2925.7,8.232]
[1766788298521,1.23128321,2926.5,2925.5,0.9069413]
[1766788298817,1.23128321,2926.5,2925.8,8.232]
[1766788299016,1.23128321,2926.5,2925.6,4.53918314]
[1766788299220,1.23128321,2926.5,2925.9,8.232]
[1766788300817,1.23128321,2926.5,2926.0,8.233]
[1766788301021,1.23128321,2926.5,2926.1,6.22222217]
[1766788301213,1.23128321,2926.5,2926.1,5.95302217]
[1766788302922,1.23128321,2926.5,2925.4,0.9069413]
[1766788303110,1.23128321,2926.5,2925.5,8.23]
[1766788306420,1.23128321,2926.5,2925.1,0.17107]
[1766788306622,1.23128321,2926.5,2925.4,0.9069413]
[1766788313934,1.23128321,2926.5,2925.5,8.213]
[1766788316026,1.23128321,2926.5,2925.1,0.17107]
[1766788316232,1.23128321,2926.5,2925.2,6.9099413]
[1766788316530,1.23128321,2926.5,2925.2,11.45527737]
[1766788316830,1.23128321,2926.5,2925.3,4.52964493]
[1766788322933,1.23128321,2926.5,2925.4,8.205]
[1766788334644,1.23128321,2926.5,2925.6,0.9069413]
[1766788337839,1.23128321,2926.5,2925.8,0.9069413]
[1766788339449,0.2865077,2927.2,2926.0,0.9069413]
[1766788339652,0.2865077,2927.2,2926.1,8.191]
[1766788340253,1.65348687,2927.2,2926.1,8.191]
[1766788340548,1.65602398,2927.2,2926.1,8.191]
[1766788342855,0.28904481,2927.2,2926.1,8.191]
[1766788350349,0.17347711,2927.2,2926.1,8.191]
[1766788351354,0.00253711,2927.2,2926.1,8.191]
[1766788352858,1.22725411,2928.8,2926.8,0.9066324]
[1766788353061,0.17088,2928.3,2927.5,0.00513075]
[1766788353264,0.17599,2928.2,2927.2,8.183]
[1766788353460,1.57316305,2928.2,2927.2,8.183]
[1766788353667,0.17599,2928.2,2927.2,8.183]
[1766788353861,1.5678049,2928.2,2927.2,8.1859402]
[1766788354363,0.17987216,2928.2,2927.4,0.00513075]
[1766788354560,1.5678049,2928.2,2927.4,0.00513075]
[1766788354761,1.59498508,2928.2,2927.4,0.00513075]
[1766788355965,1.56111961,2928.2,2927.4,0.00513075]
[1766788357168,1.55900368,2928.2,2927.4,0.00513075]
[1766788358363,0.17987216,2928.2,2927.4,0.00513075]
[1766788358570,1.5633891,2928.2,2927.4,0.00513075]
[1766788359070,0.17987216,2928.2,2927.4,0.00513075]
[1766788359364,1.5633891,2928.2,2927.4,0.00513075]
[1766788359567,0.17987216,2928.2,2927.4,0.00513075]
[1766788359768,1.57089657,2928.2,2927.4,0.00513075]
[1766788360471,1.40000657,2928.2,2927.4,0.00513075]
[1766788360772,1.40179883,2928.2,2927.4,0.00513075]
[1766788361863,1.39313538,2928.2,2927.4,0.00513075]
[1766788362069,0.00898216,2928.2,2927.4,0.00513075]
[1766788362270,1.39313538,2928.2,2927.4,0.00513075]
[1766788363070,0.00898216,2928.2,2927.4,0.00513075]
[1766788363270,1.41667903,2928.2,2927.4,0.00513075]
[1766788364573,1.40024809,2928.2,2927.4,0.00513075]
[1766788365073,0.00898216,2928.2,2927.4,0.00513075]
[1766788373480,1.39746833,2928.8,2927.5,4.45131553]
[1766788374390,1.40134052,2928.8,2927.5,4.45131553]
[1766788383095,1.40134052,2928.8,2927.6,8.155]
[1766788383694,1.40134052,2928.8,2927.4,1.19939136]
[1766788383889,1.40134052,2928.8,2927.5,5.052]
[1766788384095,1.40134052,2928.8,2927.5,9.41974999]
[1766788385088,1.40134052,2928.8,2927.6,8.153]
[1766788388395,1.40134052,2928.8,2927.4,1.19939136]
[1766788388590,1.40134052,2928.8,2927.7,8.156]
[1766788392697,0.17089,2928.2,2927.4,0.00513075]
[1766788392892,0.17089,2928.2,2927.2,0.0029402]
[1766788392893,1.0775224,2928.1,2927.2,0.0029402]
[1766788393095,0.1709,2928.0,2927.2,4.02e-05]
[1766788393892,0.00513075,2927.9,2927.3,0.00513075]
[1766788394203,0.00513075,2927.9,2927.2,4.02e-05]
[1766788395104,0.00513075,2927.9,2927.3,0.00513075]
[1766788396105,0.00513075,2927.9,2927.3,3.075e-05]
[1766788411613,0.17603075,2927.9,2927.3,3.075e-05]
[1766788420422,0.17603075,2927.9,2927.2,4.02e-05]
[1766788421427,0.17603075,2927.9,2927.3,0.00513075]
[1766788423420,0.17603075,2927.9,2927.3,3.075e-05]
[1766788429432,0.17091,2927.8,2927.3,3.075e-05]
[1766788429633,0.17091,2927.8,2927.2,4.02e-05]
[1766788430232,0.17091,2927.8,2926.5,0.90619348]
[1766788430719,0.17091,2927.8,2926.9,0.00513075]
[1766788431226,0.17091,2927.8,2926.9,0.00935874]
[1766788442746,1.07711348,2927.7,2926.9,0.00935874]
[1766788443950,0.17092,2927.7,2926.9,0.00935874]
[1766788448862,1.07711348,2927.7,2926.4,8.049]
[1766788449750,1.07711348,2927.7,2926.8,0.00513075]
[1766788465976,0.17092,2927.7,2926.8,0.00513075]
[1766788466678,0.17092,2927.7,2926.4,0.0031554]
[1766788467778,0.17092,2927.7,2926.8,0.00338975]
[1766788492001,1.63151337,2927.7,2926.8,0.00338975]
[1766788497913,1.46059337,2927.7,2926.8,0.00338975]
[1766788503408,1.46059337,2927.7,2926.9,7.968]
[1766788506124,1.46059337,2927.7,2926.8,0.00338975]
[1766788506319,1.46059337,2927.7,2926.9,7.968]
[1766788508222,1.46059337,2927.7,2926.8,0.00338975]